bitfinex-derivatives/quotes_SOLF0:USTF0_20241211
["timestamp","ask_amount","ask_price","bid_price","bid_amount"]
[1733932404475,4.17576715,229.06,228.97,12.69556323]
[1733932404676,4.17576715,229.05,229.03,2.1814]
[1733932404874,4.17576715,229.04,228.96,1.3295]
[1733932405076,10.03556323,229.09,228.94,11.36046323]
[1733932405077,4.17576715,229.03,228.94,11.36046323]
[1733932405377,10.03556323,229.09,229.01,2.1816]
[1733932405378,2.1812,229.06,229.01,2.1816]
[1733932405578,4.17349815,229.05,229.01,2.1816]
[1733932405876,4.17349815,229.04,229.01,2.1816]
[1733932406078,4.17349815,229.03,229.01,2.1816]
[1733932406273,2.66,229.05,228.94,11.36046323]
[1733932406479,4.17136153,229.04,229.01,2.1816]
[1733932406682,4.17136153,229.03,229.01,2.1816]
[1733932406872,4.17146399,229.02,229.01,2.1816]
[1733932407074,4.17146399,229.02,229.0,2.1817]
[1733932407379,2.66,229.05,229.0,2.1817]
[1733932407579,4.16947614,229.04,229.0,2.1817]
[1733932407878,4.16947614,229.03,229.0,2.1817]
[1733932408079,4.16947614,229.02,229.0,2.1817]
[1733932408279,4.8413,229.05,229.0,2.1817]
[1733932408280,4.16947614,229.04,229.0,2.1817]
[1733932408584,4.16947614,229.03,228.99,5.1809465]
[1733932408771,4.16947614,229.02,228.99,5.1809465]
[1733932409082,2.66,229.04,228.99,5.1809465]
[1733932409281,4.16770434,229.03,228.99,5.1809465]
[1733932409478,2.66,229.04,228.99,5.1809465]
[1733932409677,4.16606416,229.03,228.99,5.1809465]
[1733932409877,4.16606416,229.02,228.99,5.1809465]
[1733932410078,4.16606416,229.01,228.99,5.1809465]
[1733932410379,2.66,229.04,229.01,2.1816]
[1733932410577,4.16417315,229.03,228.99,5.1809465]
[1733932410778,4.16417315,229.02,228.99,5.1809465]
[1733932410979,4.16417315,229.01,228.99,5.1809465]
[1733932411178,2.66,229.04,229.0,2.1816]
[1733932411377,4.16251681,229.03,229.0,2.1816]
[1733932411678,4.16248232,229.02,228.89,12.69556323]
[1733932411882,4.16248232,229.01,228.98,2.1819]
[1733932412079,2.1816,229.01,228.95,5.25637649]
[1733932412280,4.16258272,229.0,228.95,5.25637649]
[1733932412480,1.3601,229.03,228.95,5.25637649]
[1733932412781,4.16074786,229.02,228.95,5.25637649]
[1733932412975,4.16074786,229.01,228.95,5.25637649]
[1733932413276,4.16074786,229.0,228.95,15.29193972]
[1733932413482,1.3642,229.05,228.95,15.29193972]
[1733932413679,4.15897608,229.04,229.03,2.1813]
[1733932413877,1.3205,229.12,229.01,10.03556323]
[1733932414076,4.15810388,229.11,229.01,10.03556323]
[1733932414275,4.15810388,229.1,229.01,10.03556323]
[1733932414481,4.15810388,229.09,229.08,2.1809]
[1733932414780,4.1577831,229.09,229.08,2.1809]
[1733932414977,1.3205,229.12,229.08,2.1809]
[1733932415173,1.3205,229.12,229.05,2.1812]
[1733932415174,4.15778615,229.11,229.05,2.1812]
[1733932415375,6.81778615,229.1,228.98,10.03556323]
[1733932415573,4.15778615,229.09,228.98,10.03556323]
[1733932415774,4.15778615,229.09,229.04,2.1813]
[1733932415979,4.15778615,229.09,228.98,10.03556323]
[1733932417682,4.15778615,229.09,229.05,2.1811]
[1733932418577,4.15778615,229.09,229.06,2.1811]
[1733932418772,4.15778615,229.08,229.01,10.03556323]
[1733932418976,4.15778615,229.07,229.06,2.1811]
[1733932419177,4.15778615,229.13,229.04,10.03556323]
[1733932419380,4.16057222,229.12,229.04,10.03556323]
[1733932419685,4.16057222,229.11,229.04,10.03556323]
[1733932419885,4.16057222,229.1,229.04,10.03556323]
[1733932420182,4.16057222,229.09,229.04,10.03556323]
[1733932420384,4.16057222,229.08,229.07,2.1811]
[1733932420682,4.16057222,229.12,229.04,10.03556323]
[1733932420875,4.16057222,229.11,229.04,10.03556323]
[1733932421075,2.1805,229.13,229.04,10.03556323]
[1733932421274,4.16289336,229.12,229.04,10.03556323]
[1733932421478,4.16289336,229.11,229.07,10.03556323]
[1733932421680,4.16289336,229.1,229.09,2.1809]
[1733932421886,4.16289336,229.16,229.07,10.03556323]
[1733932422084,4.16289336,229.15,229.07,10.03556323]
[1733932422287,4.16289336,229.14,229.13,2.1805]
[1733932423779,2.1799,229.19,229.15,2.1803]
[1733932423984,4.17102716,229.18,229.15,2.1803]
[1733932424178,4.17102716,229.17,229.15,2.1803]
[1733932424382,4.17102716,229.16,229.15,2.1803]
[1733932424583,2.18,229.18,229.08,11.38196323]
[1733932424884,4.17501842,229.17,229.08,11.38196323]
[1733932425080,4.17501842,229.16,229.08,11.38196323]
[1733932425280,4.17507528,229.15,229.08,11.38196323]
[1733932425480,14.06676323,229.2,229.08,11.38196323]
[1733932425481,4.17507528,229.14,229.08,11.38196323]
[1733932425689,4.17507528,229.13,229.08,11.38196323]
[1733932425984,14.06676323,229.2,229.08,11.38196323]
[1733932426185,4.17541822,229.19,229.08,11.38196323]
[1733932426385,4.17541822,229.19,229.15,2.1802]
[1733932426386,4.17541822,229.18,229.15,2.1802]
[1733932426587,4.17541822,229.17,229.15,2.1802]
[1733932426779,2.1799,229.19,229.15,2.1802]
[1733932426780,4.17541822,229.16,229.15,2.1802]
[1733932428686,4.17541822,229.16,229.08,11.38196323]
[1733932428878,4.17541822,229.15,229.08,11.38196323]
[1733932429082,4.17541822,229.14,229.08,11.38196323]
[1733932429278,4.17541822,229.13,229.08,11.38196323]
[1733932429485,4.17933559,229.12,229.08,11.38196323]
[1733932429684,2.18,229.18,229.08,11.38196323]
[1733932429685,4.17933559,229.11,229.08,11.38196323]
[1733932429896,4.17933559,229.1,229.08,2.1809]
[1733932430187,4.17933559,229.09,229.02,1.4021]
[1733932430381,4.17933559,229.08,229.07,2.181]
[1733932430582,2.1806,229.12,229.07,2.181]
[1733932430781,4.18084284,229.08,229.07,2.181]
[1733932430979,4.18084284,229.08,229.05,2.1812]
[1733932431178,4.18084284,229.07,229.02,1.4021]
[1733932431484,4.18084284,229.06,229.02,1.4021]
[1733932431680,4.18084284,229.05,229.02,1.4021]
[1733932431881,4.18084284,229.04,229.02,1.4021]
[1733932432192,4.18084284,229.03,229.02,3.5836]
[1733932432487,2.66,229.13,229.02,11.43766323]
[1733932432683,4.18232949,229.12,229.02,11.43766323]
[1733932432884,4.18232949,229.11,229.02,11.43766323]
[1733932433087,4.18232949,229.1,229.02,11.43766323]
[1733932433282,4.18232949,229.09,229.02,11.43766323]
[1733932433481,4.18232949,229.08,229.02,11.43766323]
[1733932433693,4.18232949,229.07,229.02,11.43766323]
[1733932433994,4.18232949,229.06,229.02,11.43766323]
[1733932434192,4.18293769,229.05,229.02,11.43766323]
[1733932434387,2.66,229.13,229.02,11.43766323]
[1733932434584,4.18414298,229.12,229.02,11.43766323]
[1733932434788,4.18414298,229.11,229.1,2.1808]
[1733932442297,2.1804,229.14,229.1,2.1808]
[1733932442593,2.1804,229.14,229.08,5.13597526]
[1733932442792,4.19602196,229.13,229.08,5.13597526]
[1733932442993,4.19602196,229.12,229.08,5.13597526]
[1733932443191,2.1804,229.14,229.08,5.13597526]
[1733932443192,4.19602196,229.11,229.08,5.13597526]
[1733932443390,4.19602196,229.1,229.08,5.13597526]
[1733932443596,4.19602196,229.09,229.08,5.13597526]
[1733932444695,4.19602196,229.09,229.08,7.31697526]
[1733932445495,2.66,229.15,229.08,5.13597526]
[1733932445699,6.37765766,229.14,229.1,2.1807]
[1733932445999,2.66,229.15,229.11,5.45396848]
[1733932446000,4.19715766,229.13,229.11,5.45396848]
[1733932446194,2.66,229.15,229.12,7.63456848]
[1733932446398,4.19732992,229.14,229.12,2.1806]
[1733932446702,4.19732992,229.13,229.08,5.13597526]
[1733932447004,4.19732992,229.12,229.09,5.45383175]
[1733932447300,4.19732992,229.12,229.08,5.13597526]
[1733932447301,4.19732992,229.11,229.1,5.45383175]
[1733932447797,6.37802992,229.11,229.1,5.45383175]
[1733932448699,10.03556323,229.14,229.0,102.66]
[1733932448700,10.03556323,229.14,229.03,5.31312391]
[1733932449002,2.181,229.09,229.03,5.31312391]
[1733932449195,4.19796922,229.08,229.04,2.1813]
[1733932449399,4.19796922,229.07,229.03,5.31312391]
[1733932449703,4.19796922,229.06,229.03,5.31312391]
[1733932449894,4.19796922,229.05,229.04,2.1813]
[1733932452394,2.1808,229.1,229.07,2.181]
[1733932452595,4.1988118,229.09,229.07,2.181]
[1733932452799,4.1988118,229.08,229.07,2.181]
[1733932452996,4.1988118,229.08,229.0,100.0]
[1733932453195,4.1988118,229.07,229.0,100.0]
[1733932453403,4.1988118,229.06,229.0,100.0]
[1733932453604,4.1988118,229.05,229.0,100.0]
[1733932453905,4.1988118,229.04,229.0,100.0]
[1733932454099,4.1988118,229.03,229.0,100.0]
[1733932454293,4.1988118,229.02,229.01,2.1816]
[1733932455703,4.1988118,229.02,229.01,7.53394278]
[1733932456899,4.1988118,229.02,229.01,2.1816]
[1733932457102,4.1988118,229.02,229.0,100.0]
[1733932457301,4.1988118,229.01,229.0,102.1817]
[1733932457501,4.1988118,229.01,229.0,100.0]
[1733932460306,6.3804118,229.01,229.0,100.0]
[1733932460509,2.1816,229.01,229.0,100.0]
[1733932460802,2.1816,229.01,229.0,97.809]
[1733932461007,2.1816,229.01,229.0,95.6228]
[1733932461303,2.1816,229.01,229.0,15.92559681]
[1733932461510,3.6227,229.01,229.0,15.92559681]
[1733932462101,3.6227,229.01,228.74,15.24730713]
[1733932462102,2.1825,228.92,228.74,15.24730713]
[1733932462304,2.64,228.91,228.81,10.03556323]
[1733932462700,2.64,228.91,228.82,5.45879787]
[1733932463005,2.64,228.91,228.83,5.45879787]
[1733932463310,2.64,228.91,228.84,5.45879787]
[1733932463510,2.64,228.91,228.86,5.14248529]
[1733932463710,2.64,228.91,228.88,2.1828]
[1733932463906,2.64,228.91,228.81,10.03556323]
[1733932464105,2.64,228.91,228.86,2.183]
[1733932464407,2.1827,228.9,228.86,2.183]
[1733932464603,2.1827,228.9,228.81,10.03556323]
[1733932464805,2.64,228.91,228.81,10.03556323]
[1733932464806,2.64,228.91,228.85,2.1831]
[1733932465311,2.1829,228.88,228.79,1.3161]
[1733932465514,4.12911331,228.87,228.79,1.3161]
[1733932465813,6.31221331,228.86,228.81,2.1835]
[1733932466009,4.12911331,228.85,228.8,5.45974664]
[1733932466209,4.12911331,228.85,228.83,2.1833]
[1733932466408,12.67556323,228.91,228.82,5.45974664]
[1733932466608,4.12547616,228.9,228.81,5.45974664]
[1733932466912,6.30827616,228.89,228.85,2.1831]
[1733932467105,4.12547616,228.88,228.82,10.03556323]
[1733932467308,2.64,228.91,228.83,5.4590363]
[1733932467610,4.12299588,228.9,228.83,5.4590363]
[1733932467914,4.12299588,228.9,228.82,10.03556323]
[1733932467915,10.03556323,228.94,228.84,5.45885066]
[1733932468114,6.76287855,228.93,228.82,10.03556323]
[1733932468407,2.183,228.87,228.83,7.64213233]
[1733932468613,2.64,228.87,228.83,2.1833]
[1733932468907,2.64,228.91,228.82,10.03556323]
[1733932469112,4.12120916,228.9,228.83,5.458852]
[1733932469309,2.64,228.91,228.84,5.458852]
[1733932469611,2.64,228.91,228.85,15.49441523]
[1733932469811,2.1823,228.94,228.86,5.458852]
[1733932470010,2.1823,228.94,228.85,10.03556323]
[1733932470011,4.12012241,228.93,228.87,5.45822679]
[1733932470312,4.12012241,228.92,228.85,10.03556323]
[1733932470514,10.03556323,228.99,228.86,5.45845781]
[1733932470716,6.75978532,228.98,228.9,2.1826]
[1733932471010,6.75978532,228.98,228.85,10.03556323]
[1733932471011,4.11964499,228.97,228.85,10.03556323]
[1733932471211,4.11964499,228.96,228.86,5.4583849]
[1733932471416,2.1824,228.93,228.89,2.1828]
[1733932471715,4.11964499,228.92,228.89,2.1828]
[1733932474116,4.11964499,228.92,228.85,10.03556323]
[1733932474117,2.64,228.94,228.85,10.03556323]
[1733932474310,4.11996089,228.91,228.85,10.03556323]
[1733932474519,4.11996089,228.9,228.85,10.03556323]
[1733932474721,4.11996089,228.89,228.85,10.03556323]
[1733932474915,2.64,228.94,228.85,10.03556323]
[1733932475110,4.11978663,228.93,228.85,10.03556323]
[1733932475319,4.11978663,228.92,228.85,10.03556323]
[1733932475517,2.64,228.94,228.85,10.03556323]
[1733932475518,4.11978663,228.91,228.85,10.03556323]
[1733932475718,4.11978663,228.9,228.87,2.1829]
[1733932475917,2.1826,228.91,228.87,2.1829]
[1733932476118,4.11897014,228.9,228.87,2.1829]
[1733932476416,2.1826,228.91,228.88,2.1828]
[1733932476612,4.11840734,228.9,228.85,10.03556323]
[1733932476814,2.1825,228.93,228.86,5.45867542]
[1733932477120,4.11829875,228.92,228.85,10.03556323]
[1733932477319,4.11829875,228.91,228.85,10.03556323]
[1733932477618,4.8224,228.94,228.85,10.03556323]
[1733932477814,4.11786457,228.93,228.89,2.1827]
[1733932478009,4.11786457,228.92,228.89,2.1827]
[1733932478213,4.11786457,228.91,228.89,2.1827]
[1733932478414,2.64,228.94,228.89,2.1827]
[1733932478617,4.11793666,228.93,228.89,2.1827]
[1733932478819,4.11793666,228.92,228.89,2.1827]
[1733932479013,4.11793666,228.91,228.89,2.1827]
[1733932479211,2.64,228.94,228.89,2.1827]
[1733932479212,4.11793666,228.9,228.89,2.1827]
[1733932479416,2.64,228.94,228.89,2.1827]
[1733932479417,4.11793666,228.93,228.89,2.1827]
[1733932479621,6.30043666,228.92,228.89,2.1827]
[1733932479818,4.11793666,228.91,228.89,2.1827]
[1733932481122,4.11793666,228.91,228.85,10.03556323]
[1733932481423,4.11793666,228.91,228.86,5.45863115]
[1733932481721,4.11793666,228.9,228.87,5.45863115]
[1733932481921,2.64,228.94,228.86,2.183]
[1733932482116,2.1826,228.91,228.87,5.45854296]
[1733932482417,2.1826,228.91,228.85,10.03556323]
[1733932482613,4.11923979,228.9,228.86,5.45846991]
[1733932482816,2.1826,228.91,228.87,7.64136991]
[1733932483018,2.1826,228.91,228.87,2.1829]
[1733932483218,2.1825,228.92,228.88,5.4583632]
[1733932483519,4.11991616,228.91,228.85,10.03556323]
[1733932483719,240.2739625,229.14,228.88,10.03556323]
[1733932483720,2.64,228.97,228.88,10.03556323]
[1733932484019,4.11977545,228.96,228.91,10.03556323]
[1733932484323,4.11977545,228.95,228.91,10.03556323]
[1733932484521,4.11977545,228.94,228.91,10.03556323]
[1733932484722,4.11977545,228.93,228.91,10.03556323]
[1733932484919,2.182,228.97,228.91,10.03556323]
[1733932485124,4.12077429,228.96,228.93,2.1823]
[1733932485319,4.12077429,228.95,228.93,2.1823]
[1733932485516,4.12077429,228.94,228.93,2.1823]
[1733932485720,2.64,229.02,228.93,2.1823]
[1733932485921,2.64,229.02,228.94,2.1823]
[1733932485922,2.182,228.98,228.94,2.1823]
[1733932486113,2.64,229.02,228.94,2.1823]
[1733932486317,2.64,229.02,228.91,10.03556323]
[1733932486623,2.1821,228.96,228.93,2.1824]
[1733932487020,10.03556323,229.01,228.9,1.4156]
[1733932487215,6.44622795,228.94,228.88,2.1829]
[1733932487619,6.44622795,228.94,228.87,7.86902795]
[1733932487819,2.1825,228.92,228.88,5.4585767]
[1733932488119,2.1825,228.92,228.87,7.86902795]
[1733932488319,2.1825,228.92,228.88,7.64134252]
[1733932488520,2.1825,228.92,228.88,2.1828]
[1733932489526,2.1825,228.92,228.89,7.6410804]
[1733932489716,2.1825,228.92,228.89,2.1827]
[1733932491825,2.1825,228.92,228.83,1.4339]
[1733932491826,10.07348327,228.95,228.83,1.4339]
[1733932492025,10.07348327,228.95,228.84,5.45862672]
[1733932492321,10.07348327,228.95,228.83,1.4339]
[1733932492322,10.07348327,228.95,228.85,5.45862672]
[1733932492527,2.1827,228.9,228.86,7.64162672]
[1733932492722,2.1827,228.9,228.87,5.45862672]
[1733932492930,2.1827,228.9,228.88,5.45862672]
[1733932493124,2.1827,228.9,228.86,2.183]
[1733932493520,10.07348327,228.95,228.83,1.4339]
[1733932493726,2.64,228.96,228.87,5.45864144]
[1733932493727,10.07348327,228.92,228.87,5.45864144]
[1733932493926,10.07348327,228.92,228.8,5.17146606]
[1733932494130,10.07348327,228.92,228.81,5.45948102]
[1733932494325,10.07348327,228.92,228.83,2.1833]
[1733932494326,2.183,228.87,228.83,2.1833]
[1733932494527,2.64,228.89,228.84,5.45948102]
[1733932494829,2.1831,228.86,228.85,5.45948102]
[1733932495223,2.64,228.89,228.8,5.17146606]
[1733932495420,2.64,228.89,228.81,5.4608769]
[1733932495623,2.64,228.89,228.82,7.6442769]
[1733932495826,2.64,228.89,228.83,5.46061766]
[1733932496024,2.64,228.89,228.82,2.1834]
[1733932496224,2.1832,228.85,228.81,2.1835]
[1733932496436,2.64,228.89,228.8,5.17146606]
[1733932496727,2.1829,228.88,228.84,2.1832]
[1733932496937,2.1829,228.88,228.85,5.46096179]
[1733932497128,2.1829,228.88,228.84,2.1832]
[1733932497328,2.1829,228.88,228.85,5.4600141]
[1733932497536,2.1829,228.88,228.84,2.1832]
[1733932497828,2.1829,228.88,228.85,5.46005877]
[1733932498033,2.1829,228.88,228.84,2.1832]
[1733932498238,2.1829,228.88,228.81,10.07348327]
[1733932498239,2.1829,228.88,228.85,7.64337658]
[1733932498433,2.183,228.87,228.81,10.07348327]
[1733932498731,2.183,228.87,228.83,2.1832]
[1733932498931,2.1831,228.86,228.83,2.1832]
[1733932499232,2.64,228.9,228.83,2.1832]
[1733932499434,2.64,228.9,228.81,10.07348327]
[1733932499934,2.64,228.9,228.87,2.1829]
[1733932500235,2.64,228.95,228.84,10.07348327]
[1733932500535,2.64,228.95,228.85,1.3359]
[1733932500736,219.31571995,229.03,228.9,10.07348327]
[1733932500931,14.91529169,229.02,228.9,10.07348327]
[1733932501236,2.1819,228.99,228.9,10.07348327]
[1733932501732,10.07348327,229.01,228.93,2.1824]
[1733932502037,2.64,229.0,228.87,10.07348327]
[1733932502237,2.64,229.0,228.91,2.1825]
[1733932502633,2.64,229.0,228.87,10.07348327]
[1733932502834,2.64,229.0,228.9,10.07348327]
[1733932503439,2.64,229.02,228.9,10.07348327]
[1733932503737,2.64,229.02,228.93,10.07348327]
[1733932503936,4.2190125,229.01,228.97,2.182]
[1733932504130,4.8215,229.02,228.97,2.182]
[1733932504131,4.2190125,229.0,228.97,2.182]
[1733932504332,4.8215,229.02,228.97,2.182]
[1733932504333,4.2190125,228.99,228.97,2.182]
[1733932504527,2.1815,229.02,228.98,7.6391001]
[1733932504732,6.40147502,229.01,228.99,5.4572001]
[1733932504938,4.21987502,229.0,228.93,10.07348327]
[1733932505231,2.64,229.04,228.94,5.45746878]
[1733932505541,2.64,229.04,228.95,5.45746878]
[1733932505734,11.42378327,229.08,228.99,2.1818]
[1733932506042,2.1813,229.05,228.96,6.89346878]
[1733932506237,2.64,229.07,228.99,2.1817]
[1733932506437,2.64,229.07,228.97,5.45746878]
[1733932506438,2.1812,229.06,229.0,5.45746878]
[1733932506636,2.1812,229.06,229.01,5.45746878]
[1733932506833,10.07348327,229.08,229.02,5.45746878]
[1733932507035,2.1812,229.05,229.03,5.45746878]
[1733932507238,2.1812,229.05,229.04,5.45746878]
[1733932507733,2.1811,229.07,229.04,5.45746878]
[1733932507943,2.1811,229.07,228.97,10.07348327]
[1733932508231,2.1811,229.07,228.98,5.45619764]
[1733932508433,2.1809,229.09,228.98,5.45619764]
[1733932508630,10.07348327,229.11,229.03,2.1814]
[1733932508834,10.07348327,229.11,229.04,5.45619764]
[1733932508835,12.71348327,229.11,229.04,5.45619764]
[1733932509035,12.71348327,229.11,229.03,2.1814]
[1733932509237,12.71348327,229.11,229.04,5.4560943]
[1733932509539,2.1809,229.09,229.04,2.1812]
[1733932510442,2.1809,229.09,229.05,5.45530603]
[1733932510641,2.64,229.11,229.06,5.45530603]
[1733932510843,2.64,229.11,229.07,5.45530603]
[1733932511039,10.07348327,229.14,229.01,2.6699]
[1733932511242,2.1807,229.11,229.02,5.45507154]
[1733932511741,10.07348327,229.11,229.02,5.45507154]
[1733932512140,10.07348327,229.11,229.03,5.45507154]
[1733932512341,10.07348327,229.11,229.04,5.45507154]
[1733932512541,10.07348327,229.11,229.05,5.45507154]
[1733932512738,10.07348327,229.11,229.01,2.6699]
[1733932513239,10.07348327,229.11,229.02,5.4552639]
[1733932513438,10.07348327,229.11,229.03,5.4552639]
[1733932513743,10.07348327,229.11,229.04,5.4552639]
[1733932513941,10.07348327,229.11,229.01,2.6699]
[1733932514137,10.07348327,229.11,229.02,5.45523476]
[1733932514334,10.07348327,229.11,229.01,2.6699]
[1733932514536,2.1811,229.07,229.03,5.45520862]
[1733932514739,2.1811,229.07,229.02,7.63670862]
[1733932515039,2.1811,229.07,229.04,5.45520862]
[1733932515240,2.1811,229.07,229.03,5.45520862]
[1733932515441,2.1811,229.07,229.04,5.4551829]
[1733932515640,2.1811,229.07,229.02,2.1815]
[1733932515836,10.07348327,229.11,229.03,5.45518621]
[1733932516032,2.64,229.13,229.04,5.45518621]
[1733932516245,2.64,229.13,229.01,2.6699]
[1733932516438,2.64,229.13,229.04,2.1813]
[1733932516634,2.64,229.13,229.01,2.6699]
[1733932516838,2.1809,229.09,229.03,2.1813]
[1733932517041,2.64,229.13,229.04,5.45509736]
[1733932517242,2.64,229.13,229.03,2.1813]
[1733932517937,2.1811,229.07,229.03,2.1813]
[1733932518142,2.64,229.13,229.04,5.45511702]
[1733932518639,2.64,229.13,229.04,7.63641702]
[1733932518844,2.64,229.13,229.04,2.1813]
[1733932519042,2.1811,229.07,229.03,2.1814]
[1733932519734,6.43891955,229.06,228.79,15.24730713]
[1733932519938,6.43891955,229.06,228.98,6.43891955]
[1733932520139,2.1814,229.03,228.99,7.63789495]
[1733932520342,2.1814,229.03,228.99,2.1817]
[1733932520642,2.1817,229.01,228.96,3.6181]
[1733932520938,6.43891955,229.02,228.97,5.45666214]
[1733932521138,6.43891955,228.98,228.92,2.7698]
[1733932521341,10.0710411,229.0,228.92,1.3761]
[1733932521543,2.64,228.99,228.93,5.45708401]
[1733932521740,10.0710411,228.97,228.86,1.316]
[1733932522047,10.0710411,228.97,228.87,5.45842466]
[1733932522246,10.0710411,228.97,228.88,5.45842466]
[1733932522444,10.0710411,228.97,228.88,7.64132466]
[1733932522642,10.0710411,228.97,228.89,5.45842466]
[1733932523137,10.0710411,228.97,228.88,2.1829]
[1733932523138,2.1824,228.94,228.88,2.1829]
[1733932523735,2.1824,228.93,228.89,5.45857322]
[1733932524036,2.1824,228.93,228.85,1.4498]
[1733932524037,2.64,228.93,228.9,5.45871004]
[1733932524242,2.64,228.93,228.85,2.1831]
[1733932524444,2.1827,228.9,228.86,5.45915815]
[1733932524645,2.64,228.93,228.87,7.64205815]
[1733932524943,10.0710411,228.97,228.88,5.45915815]
[1733932525142,10.0710411,228.97,228.89,5.45915815]
[1733932525143,2.1822,228.96,228.89,5.45915815]
[1733932525348,2.64,228.97,228.9,5.45915815]
[1733932525648,2.1821,228.96,228.86,10.0710411]
[1733932525844,2.1821,228.96,228.91,2.1826]
[1733932526340,2.1821,228.96,228.86,10.0710411]
[1733932526546,2.64,228.97,228.87,5.45856218]
[1733932526743,2.64,228.97,228.83,5.27695391]
[1733932526744,2.1824,228.93,228.88,5.45856218]
[1733932526945,2.1824,228.93,228.86,10.0710411]
[1733932527243,2.1824,228.93,228.87,5.4592224]
[1733932527749,2.1824,228.93,228.88,2.1828]
[1733932528041,2.1824,228.93,228.86,10.0710411]
[1733932528242,2.1824,228.93,228.89,2.1828]
[1733932528847,2.1823,228.94,228.89,2.1828]
[1733932529444,2.1824,228.93,228.89,2.1828]
[1733932530740,2.64,228.97,228.86,10.0710411]
[1733932531048,2.64,228.97,228.9,2.1826]
[1733932531748,1.3165,229.01,228.92,2.1824]
[1733932531948,2.64,229.01,228.89,10.0710411]
[1733932532150,2.64,229.01,228.9,9.76962905]
[1733932532446,2.1818,228.99,228.94,2.1822]
[1733932532840,2.64,229.02,228.95,5.45765827]
[1733932533042,2.64,229.02,228.94,2.1822]
[1733932533248,2.64,229.02,228.95,5.45755424]
[1733932533449,2.64,229.02,228.9,4.3113]
[1733932534055,2.64,229.02,228.91,5.45743567]
[1733932534348,2.64,229.06,228.95,10.0710411]
[1733932534750,2.1814,229.04,228.99,2.1817]
[1733932535751,2.1814,229.04,228.95,10.0710411]
[1733932535950,2.1814,229.04,229.0,2.1817]
[1733932536953,2.1815,229.03,228.98,2.1819]
[1733932537452,2.1815,229.03,228.95,10.0710411]
[1733932537453,2.64,229.07,228.95,10.0710411]
[1733932537653,2.1816,229.02,228.96,7.63847734]
[1733932537853,2.1816,229.02,228.97,5.45647734]
[1733932538044,2.1816,229.02,228.98,5.45647734]
[1733932538245,2.1817,229.01,228.97,2.182]
[1733932538645,2.1817,229.01,228.92,10.0710411]
[1733932538854,2.1816,229.02,228.93,5.45661162]
[1733932539152,2.1816,229.02,228.94,5.45661162]
[1733932539352,2.1816,229.02,228.92,10.0710411]
[1733932539353,2.1816,229.01,228.97,2.182]
[1733932541450,2.1816,229.01,228.98,5.45658158]
[1733932541651,2.1816,229.01,228.97,2.182]
[1733932541955,2.1816,229.01,228.98,5.45662317]
[1733932542153,2.1816,229.01,228.97,2.182]
[1733932542352,2.1816,229.01,228.98,5.45662521]
[1733932542553,2.1816,229.01,228.97,2.182]
[1733932542751,2.1816,229.01,228.98,5.45662169]
[1733932542955,2.1816,229.01,228.97,2.182]
[1733932543155,2.1816,229.01,228.98,5.45661304]
[1733932543452,2.1816,229.01,228.97,2.182]
[1733932543758,2.1816,229.01,228.98,5.45661727]
[1733932543957,2.1816,229.01,228.97,2.182]
[1733932544259,2.1816,229.01,228.98,5.45661396]
[1733932544454,2.1816,229.01,228.99,5.45661396]
[1733932544655,2.1816,229.01,228.97,2.182]
[1733932544852,2.1816,229.01,228.98,5.45661396]
[1733932545160,2.1817,229.01,228.99,5.45661396]
[1733932545360,2.1817,229.01,228.95,5.34694698]
[1733932545658,2.1817,229.01,228.96,5.45664961]
[1733932545855,2.1817,229.01,228.97,5.45664961]
[1733932546052,2.1818,229.0,228.92,10.0710411]
[1733932546258,2.1818,229.0,228.98,5.45665944]
[1733932546559,2.1818,229.0,228.99,5.45665944]
[1733932546759,2.1818,229.0,228.87,10.0710411]
[1733932546760,2.182,228.97,228.87,10.0710411]
[1733932546960,2.182,228.97,228.91,5.45791181]
[1733932547160,2.182,228.97,228.92,5.45791181]
[1733932547357,2.1819,228.98,228.92,5.45791181]
[1733932547563,2.1819,228.98,228.93,7.64021181]
[1733932547857,2.1819,228.98,228.93,2.1823]
[1733932548460,2.1819,228.98,228.94,5.4581335]
[1733932548661,2.1819,228.98,228.94,2.1823]
[1733932549864,10.0710411,229.0,228.87,10.0710411]